[Event "Early-Titled-Tuesday-Blitz-March-19-2024"]
[Site "Chess.com"]
[Date "2024.03.19"]
[Round "4"]
[White "mishanick"]
[Black "Seochesspie"]
[Result "1-0"]
[WhiteElo "3129"]
[BlackElo "2890"]
[TimeControl "180+1"]
[EndTime "8:40:16 PDT"]
[Termination "mishanick won by checkmate"]

1. d4 {[%clk 0:03:00.9]} 1... Nf6 {[%clk 0:03:00.9]} 2. c4 {[%clk 0:03:01.3]}
2... e6 {[%clk 0:03:00.3]} 3. Nc3 {[%clk 0:03:01.3]} 3... Bb4 {[%clk 0:02:58.2]}
4. e3 {[%clk 0:03:01.9]} 4... c5 {[%clk 0:02:57.1]} 5. Bd3 {[%clk 0:03:01.3]}
5... O-O {[%clk 0:02:56.5]} 6. Nf3 {[%clk 0:03:00.9]} 6... d5 {[%clk 0:02:53.3]}
7. O-O {[%clk 0:03:00.4]} 7... dxc4 {[%clk 0:02:49.5]} 8. Bxc4 {[%clk
0:03:01.3]} 8... Nc6 {[%clk 0:02:49.1]} 9. a3 {[%clk 0:03:01.4]} 9... Ba5 {[%clk
0:02:49.4]} 10. h3 {[%clk 0:03:02.1]} 10... Qe7 {[%clk 0:02:45.8]} 11. Qc2
{[%clk 0:02:57.3]} 11... cxd4 {[%clk 0:02:39.8]} 12. exd4 {[%clk 0:02:56.5]}
12... Rd8 {[%clk 0:02:39.7]} 13. Be3 {[%clk 0:02:55.6]} 13... Bxc3 {[%clk
0:02:23.7]} 14. bxc3 {[%clk 0:02:52.6]} 14... b6 {[%clk 0:02:23.9]} 15. Bd3
{[%clk 0:02:47.5]} 15... Bb7 {[%clk 0:02:21]} 16. Rfe1 {[%clk 0:02:46.5]} 16...
Rac8 {[%clk 0:02:19.9]} 17. a4 {[%clk 0:02:21.4]} 17... Na5 {[%clk 0:02:17.6]}
18. Ne5 {[%clk 0:02:20.1]} 18... h6 {[%clk 0:02:18.1]} 19. c4 {[%clk 0:02:17.5]}
19... Nd7 {[%clk 0:02:09.1]} 20. Nxd7 {[%clk 0:01:53.9]} 20... Qxd7 {[%clk
0:02:08.3]} 21. Qe2 {[%clk 0:01:54.1]} 21... Nxc4 {[%clk 0:01:49.2]} 22. Bxc4
{[%clk 0:01:54]} 22... Qc6 {[%clk 0:01:49.4]} 23. Qg4 {[%clk 0:01:53.6]} 23...
Qxc4 {[%clk 0:01:49.6]} 24. Bxh6 {[%clk 0:01:53.3]} 24... Qxd4 {[%clk
0:01:49.4]} 25. Qg3 {[%clk 0:01:46.6]} 25... Rc3 {[%clk 0:01:31.1]} 26. Be3
{[%clk 0:01:46.3]} 26... Qd5 {[%clk 0:01:22.7]} 27. Rad1 {[%clk 0:01:42.2]}
27... Qxd1 {[%clk 0:01:18.9]} 28. Rxd1 {[%clk 0:01:43.1]} 28... Rxd1+ {[%clk
0:01:19]} 29. Kh2 {[%clk 0:01:43.9]} 29... Rd8 {[%clk 0:01:04.5]} 30. Qg4 {[%clk
0:01:35.3]} 30... Rxe3 {[%clk 0:00:31.4]} 31. fxe3 {[%clk 0:01:36.2]} 31... Rd2
{[%clk 0:00:31.4]} 32. e4 {[%clk 0:01:36.9]} 32... Rd4 {[%clk 0:00:31.1]} 33.
Qf4 {[%clk 0:01:29]} 33... Bxe4 {[%clk 0:00:30.2]} 34. a5 {[%clk 0:01:23]} 34...
bxa5 {[%clk 0:00:29.6]} 35. h4 {[%clk 0:01:23.4]} 35... a4 {[%clk 0:00:22.8]}
36. h5 {[%clk 0:01:16.7]} 36... Rc4 {[%clk 0:00:11.9]} 37. g4 {[%clk 0:00:57.5]}
37... Bd5 {[%clk 0:00:09.6]} 38. Qb8+ {[%clk 0:00:56.3]} 38... Kh7 {[%clk
0:00:09.9]} 39. g5 {[%clk 0:00:56.7]} 39... Rh4+ {[%clk 0:00:09.8]} 40. Kg3
{[%clk 0:00:51.7]} 40... Rxh5 {[%clk 0:00:09.9]} 41. Qb1+ {[%clk 0:00:47.4]}
41... g6 {[%clk 0:00:07.8]} 42. Kf4 {[%clk 0:00:47.6]} 42... Rh3 {[%clk
0:00:06.1]} 43. Ke5 {[%clk 0:00:41.5]} 43... Rf3 {[%clk 0:00:07]} 44. Kd6 {[%clk
0:00:39.6]} 44... a3 {[%clk 0:00:06.9]} 45. Ke7 {[%clk 0:00:39.8]} 45... a2
{[%clk 0:00:02.1]} 46. Qa1 {[%clk 0:00:38.1]} 46... Kg8 {[%clk 0:00:02.1]} 47.
Qe5 {[%clk 0:00:38.6]} 47... Rf1 {[%clk 0:00:01.9]} 48. Qb8+ {[%clk 0:00:38.6]}
48... Kh7 {[%clk 0:00:02.3]} 49. Kf8 {[%clk 0:00:21.1]} 49... a1=Q {[%clk
0:00:03.2]} 50. Qh2# {[%clk 0:00:20.9]} 1-0

[Event "Early-Titled-Tuesday-Blitz-March-19-2024"]
[Site "Chess.com"]
[Date "2024.03.19"]
[Round "4"]
[White "GlavkonVVS"]
[Black "DraningWaterHi"]
[Result "1-0"]
[WhiteElo "2696"]
[BlackElo "2249"]
[TimeControl "180+1"]
[EndTime "8:40:18 PDT"]
[Termination "GlavkonVVS won by checkmate"]

1. c4 {[%clk 0:03:00.9]} 1... Nf6 {[%clk 0:02:57.5]} 2. Nc3 {[%clk 0:03:01.5]}
2... g6 {[%clk 0:02:54.3]} 3. Nf3 {[%clk 0:03:01.7]} 3... Bg7 {[%clk 0:02:54.7]}
4. d4 {[%clk 0:03:02.3]} 4... d6 {[%clk 0:02:54.7]} 5. Bg5 {[%clk 0:03:02.9]}
5... O-O {[%clk 0:02:55]} 6. e3 {[%clk 0:03:02.4]} 6... h6 {[%clk 0:02:54.9]} 7.
Bh4 {[%clk 0:03:02.4]} 7... g5 {[%clk 0:02:55.5]} 8. Bg3 {[%clk 0:03:02.3]} 8...
Nh5 {[%clk 0:02:56.2]} 9. Qc2 {[%clk 0:03:01.5]} 9... Nxg3 {[%clk 0:02:56]} 10.
hxg3 {[%clk 0:03:01.4]} 10... f5 {[%clk 0:02:55.5]} 11. O-O-O {[%clk 0:02:53.6]}
11... Nc6 {[%clk 0:02:53.8]} 12. c5 {[%clk 0:02:49.4]} 12... e6 {[%clk
0:02:27.5]} 13. d5 {[%clk 0:02:32]} 13... Nb4 {[%clk 0:02:25.6]} 14. Qb3 {[%clk
0:02:31.5]} 14... Nxd5 {[%clk 0:02:20.2]} 15. Nxd5 {[%clk 0:02:30.2]} 15... exd5
{[%clk 0:02:21.1]} 16. Qxd5+ {[%clk 0:02:29.6]} 16... Kh8 {[%clk 0:02:20.3]} 17.
cxd6 {[%clk 0:02:28.2]} 17... cxd6 {[%clk 0:02:20.5]} 18. Qxd6 {[%clk
0:02:26.9]} 18... Qf6 {[%clk 0:02:04]} 19. Qxf6 {[%clk 0:02:22.4]} 19... Rxf6
{[%clk 0:02:04.1]} 20. Rd8+ {[%clk 0:02:11.6]} 20... Kh7 {[%clk 0:02:03.2]} 21.
Nxg5+ {[%clk 0:02:09.4]} 21... Kg6 {[%clk 0:02:04.1]} 22. Nh3 {[%clk 0:02:02.9]}
22... Rc6+ {[%clk 0:01:56.1]} 23. Kb1 {[%clk 0:02:02.6]} 23... f4 {[%clk
0:01:51.5]} 24. Nxf4+ {[%clk 0:02:02.6]} 24... Kf7 {[%clk 0:01:51.7]} 25. Bd3
{[%clk 0:02:00.3]} 25... Be5 {[%clk 0:01:48.6]} 26. Rd1 {[%clk 0:01:52.5]} 26...
a6 {[%clk 0:01:45.3]} 27. Be4 {[%clk 0:01:47.1]} 27... Rc7 {[%clk 0:01:45.2]}
28. Bg6+ {[%clk 0:01:39.8]} 28... Kg7 {[%clk 0:01:42.8]} 29. Bc2 {[%clk
0:01:39]} 29... Kf7 {[%clk 0:01:41.3]} 30. Ng6 {[%clk 0:01:36.8]} 30... Bf6
{[%clk 0:01:40.4]} 31. Rf8+ {[%clk 0:01:36.3]} 31... Kg7 {[%clk 0:01:39.4]} 32.
Re8 {[%clk 0:01:32.1]} 32... Bf5 {[%clk 0:01:36.7]} 33. Bxf5 {[%clk 0:01:29.4]}
33... Rxe8 {[%clk 0:01:35.6]} 34. Nf4 {[%clk 0:01:29.5]} 34... Rce7 {[%clk
0:01:29.3]} 35. e4 {[%clk 0:01:20.6]} 35... Re5 {[%clk 0:01:16]} 36. Nd5 {[%clk
0:01:18.8]} 36... Rxf5 {[%clk 0:01:01.7]} 37. exf5 {[%clk 0:01:18.6]} 37... Re2
{[%clk 0:01:01.8]} 38. Nxf6 {[%clk 0:01:15.9]} 38... Kxf6 {[%clk 0:01:02.7]} 39.
Rd6+ {[%clk 0:01:04.3]} 39... Kxf5 {[%clk 0:01:01.7]} 40. Rxh6 {[%clk
0:01:03.9]} 40... Rxf2 {[%clk 0:01:02.3]} 41. Rb6 {[%clk 0:01:03.6]} 41... Rf1+
{[%clk 0:00:36]} 42. Kc2 {[%clk 0:01:03.4]} 42... Rf2+ {[%clk 0:00:36.2]} 43.
Kb3 {[%clk 0:01:03.3]} 43... Rxg2 {[%clk 0:00:36.4]} 44. Rxb7 {[%clk 0:01:03.3]}
44... Rxg3+ {[%clk 0:00:36.7]} 45. Ka4 {[%clk 0:01:02.9]} 45... Ke5 {[%clk
0:00:29.6]} 46. Ka5 {[%clk 0:01:00.8]} 46... Kd5 {[%clk 0:00:27.9]} 47. Kxa6
{[%clk 0:00:59.6]} 47... Kc6 {[%clk 0:00:26]} 48. Rb6+ {[%clk 0:00:57.9]} 48...
Kc7 {[%clk 0:00:25.2]} 49. a4 {[%clk 0:00:56.2]} 49... Rg4 {[%clk 0:00:24]} 50.
a5 {[%clk 0:00:55.8]} 50... Rg5 {[%clk 0:00:22]} 51. b4 {[%clk 0:00:55.8]} 51...
Rf5 {[%clk 0:00:22]} 52. Rh6 {[%clk 0:00:54.5]} 52... Rf7 {[%clk 0:00:19.9]} 53.
b5 {[%clk 0:00:54]} 53... Rf8 {[%clk 0:00:18.2]} 54. b6+ {[%clk 0:00:54]} 54...
Kb8 {[%clk 0:00:18.6]} 55. Rh7 {[%clk 0:00:53.8]} 55... Ka8 {[%clk 0:00:18.5]}
56. Rd7 {[%clk 0:00:52.7]} 56... Kb8 {[%clk 0:00:18.4]} 57. Kb5 {[%clk
0:00:52.8]} 57... Rf5+ {[%clk 0:00:17.9]} 58. Kb4 {[%clk 0:00:53.1]} 58... Rf4+
{[%clk 0:00:18.2]} 59. Kc5 {[%clk 0:00:53.4]} 59... Rf5+ {[%clk 0:00:18.6]} 60.
Rd5 {[%clk 0:00:53.7]} 60... Rf6 {[%clk 0:00:18]} 61. a6 {[%clk 0:00:54]} 61...
Rf8 {[%clk 0:00:17]} 62. Kc6 {[%clk 0:00:54.2]} 62... Rc8+ {[%clk 0:00:16.9]}
63. Kd7 {[%clk 0:00:54.3]} 63... Rh8 {[%clk 0:00:17.1]} 64. Re5 {[%clk
0:00:54.5]} 64... Rh7+ {[%clk 0:00:10.3]} 65. Re7 {[%clk 0:00:54.7]} 65... Rh8
{[%clk 0:00:10]} 66. Re8+ {[%clk 0:00:55.1]} 66... Rxe8 {[%clk 0:00:10.6]} 67.
Kxe8 {[%clk 0:00:55.4]} 67... Ka8 {[%clk 0:00:11.4]} 68. Kd7 {[%clk 0:00:55.8]}
68... Kb8 {[%clk 0:00:11.7]} 69. b7 {[%clk 0:00:55.6]} 69... Ka7 {[%clk
0:00:10.5]} 70. Kc7 {[%clk 0:00:56.2]} 70... Kxa6 {[%clk 0:00:11.1]} 71. b8=Q
{[%clk 0:00:56.7]} 71... Ka5 {[%clk 0:00:11.4]} 72. Qb3 {[%clk 0:00:57.2]} 72...
Ka6 {[%clk 0:00:11.9]} 73. Qb6# {[%clk 0:00:57.7]} 1-0

[Event "Early-Titled-Tuesday-Blitz-March-19-2024"]
[Site "Chess.com"]
[Date "2024.03.19"]
[Round "4"]
[White "Sharan_Rao"]
[Black "scarabee43"]
[Result "0-1"]
[WhiteElo "2590"]
[BlackElo "2821"]
[TimeControl "180+1"]
[EndTime "8:40:20 PDT"]
[Termination "scarabee43 won on time"]

1. d4 {[%clk 0:03:00.9]} 1... Nf6 {[%clk 0:02:59.6]} 2. Nc3 {[%clk 0:03:01.5]}
2... d5 {[%clk 0:02:58.6]} 3. Bf4 {[%clk 0:03:01.8]} 3... a6 {[%clk 0:02:56.6]}
4. e3 {[%clk 0:03:01.7]} 4... Bf5 {[%clk 0:02:55.9]} 5. Nf3 {[%clk 0:03:01.2]}
5... h6 {[%clk 0:02:54.9]} 6. Ne5 {[%clk 0:03:01.6]} 6... Nbd7 {[%clk
0:02:53.1]} 7. g4 {[%clk 0:02:59.3]} 7... Bh7 {[%clk 0:02:47.9]} 8. h4 {[%clk
0:02:56.1]} 8... e6 {[%clk 0:02:46.4]} 9. g5 {[%clk 0:02:54.7]} 9... Nxe5 {[%clk
0:02:43.6]} 10. Bxe5 {[%clk 0:02:13.9]} 10... Nd7 {[%clk 0:02:29.3]} 11. Bf4
{[%clk 0:02:09]} 11... c5 {[%clk 0:02:20.8]} 12. Bd3 {[%clk 0:02:02.3]} 12...
Bxd3 {[%clk 0:02:19.9]} 13. Qxd3 {[%clk 0:02:00.7]} 13... hxg5 {[%clk
0:02:19.5]} 14. Bxg5 {[%clk 0:00:56.3]} 14... Qxg5 {[%clk 0:02:18.7]} 15. hxg5
{[%clk 0:00:56.8]} 15... Rxh1+ {[%clk 0:02:19]} 16. Kd2 {[%clk 0:00:56.3]} 16...
Rxa1 {[%clk 0:02:17.6]} 17. e4 {[%clk 0:00:56.3]} 17... dxe4 {[%clk 0:01:57.4]}
18. Nxe4 {[%clk 0:00:54.1]} 18... cxd4 {[%clk 0:01:52.9]} 19. Qxd4 {[%clk
0:00:55]} 19... O-O-O {[%clk 0:01:53.5]} 20. Qc3+ {[%clk 0:00:42.2]} 20... Kb8
{[%clk 0:01:40.8]} 21. Ke2 {[%clk 0:00:42.2]} 21... Rg1 {[%clk 0:01:17.8]} 22.
b4 {[%clk 0:00:28.9]} 22... Nb6 {[%clk 0:01:16.1]} 23. b5 {[%clk 0:00:27.2]}
23... Rb1 {[%clk 0:00:57.3]} 24. bxa6 {[%clk 0:00:25.3]} 24... bxa6 {[%clk
0:00:57.3]} 25. Qg3+ {[%clk 0:00:25.1]} 25... Ka8 {[%clk 0:00:54.2]} 26. Qc7
{[%clk 0:00:23.9]} 26... Rd7 {[%clk 0:00:53.8]} 27. Qc6+ {[%clk 0:00:20.3]}
27... Ka7 {[%clk 0:00:54.2]} 28. c4 {[%clk 0:00:21.1]} 28... Rb2+ {[%clk
0:00:51.6]} 29. Kf3 {[%clk 0:00:19.2]} 29... Rd3+ {[%clk 0:00:42.7]} 30. Kg2
{[%clk 0:00:19.5]} 30... Na8 {[%clk 0:00:39.1]} 31. Qe8 {[%clk 0:00:15.4]} 31...
Ba3 {[%clk 0:00:37.1]} 32. Qxf7+ {[%clk 0:00:15.6]} 32... Rb7 {[%clk 0:00:37.8]}
33. Qxe6 {[%clk 0:00:15.7]} 33... Rc7 {[%clk 0:00:37]} 34. g6 {[%clk 0:00:09.6]}
34... Nb6 {[%clk 0:00:36.2]} 35. c5 {[%clk 0:00:08.3]} 35... Na4 {[%clk
0:00:35.8]} 36. c6 {[%clk 0:00:07.9]} 36... Nb6 {[%clk 0:00:35.5]} 37. Qe8
{[%clk 0:00:06.9]} 37... Rd4 {[%clk 0:00:35]} 38. f3 {[%clk 0:00:06.3]} 38...
Rc4 {[%clk 0:00:34.9]} 39. Ng5 {[%clk 0:00:05.2]} 39... R4xc6 {[%clk 0:00:35.2]}
40. Ne6 {[%clk 0:00:05.8]} 40... Rc2+ {[%clk 0:00:34.5]} 41. Kh3 {[%clk
0:00:05.5]} 41... Rd7 {[%clk 0:00:34]} 42. Nd8 {[%clk 0:00:04.3]} 42... Rc8
{[%clk 0:00:33]} 43. Qe3 {[%clk 0:00:03.4]} 43... Bc5 {[%clk 0:00:33.1]} 44.
Nc6+ {[%clk 0:00:01.6]} 44... Rxc6 {[%clk 0:00:33]} 45. Qe4 {[%clk 0:00:02.5]}
45... Rcd6 {[%clk 0:00:32.7]} 46. f4 {[%clk 0:00:02.8]} 46... Bd4 {[%clk
0:00:33.1]} 47. f5 {[%clk 0:00:03]} 47... Bf6 {[%clk 0:00:33.3]} 48. Kg2 {[%clk
0:00:02.1]} 48... Rd2+ {[%clk 0:00:33.6]} 49. Kf1 {[%clk 0:00:02.6]} 49... Rxa2
{[%clk 0:00:34.2]} 50. Ke1 {[%clk 0:00:01.2]} 50... Bc3+ {[%clk 0:00:33.9]} 51.
Kf1 {[%clk 0:00:01.3]} 51... Rd1+ {[%clk 0:00:34.2]} 0-1

[Event "Early-Titled-Tuesday-Blitz-March-19-2024"]
[Site "Chess.com"]
[Date "2024.03.19"]
[Round "4"]
[White "AndresDelgado77"]
[Black "1mbl4"]
[Result "1-0"]
[WhiteElo "2337"]
[BlackElo "2616"]
[TimeControl "180+1"]
[EndTime "8:40:20 PDT"]
[Termination "AndresDelgado77 won by resignation"]

1. e4 {[%clk 0:02:59.1]} 1... c5 {[%clk 0:03:00.1]} 2. Nf3 {[%clk 0:02:58.7]}
2... Nc6 {[%clk 0:03:00.4]} 3. b4 {[%clk 0:02:58.3]} 3... cxb4 {[%clk
0:02:57.1]} 4. d4 {[%clk 0:02:58.3]} 4... d5 {[%clk 0:02:49.5]} 5. exd5 {[%clk
0:02:58.6]} 5... Qxd5 {[%clk 0:02:50.4]} 6. c4 {[%clk 0:02:59]} 6... Qh5 {[%clk
0:02:21.9]} 7. Be2 {[%clk 0:02:57]} 7... Nf6 {[%clk 0:02:00.6]} 8. O-O {[%clk
0:02:31.5]} 8... g5 {[%clk 0:01:48]} 9. d5 {[%clk 0:02:20.3]} 9... Nd8 {[%clk
0:01:27.3]} 10. Bxg5 {[%clk 0:01:06.3]} 10... Bg7 {[%clk 0:01:16.5]} 11. Nbd2
{[%clk 0:00:54.6]} 11... O-O {[%clk 0:01:03]} 12. h4 {[%clk 0:00:43.1]} 12...
Ng4 {[%clk 0:00:59.7]} 13. Bxe7 {[%clk 0:00:35.4]} 13... Re8 {[%clk 0:00:59.4]}
14. Bxd8 {[%clk 0:00:29.3]} 14... Rxd8 {[%clk 0:01:00.3]} 15. Ne4 {[%clk
0:00:29.5]} 15... Re8 {[%clk 0:00:41.8]} 16. Ng3 {[%clk 0:00:28.7]} 16... Qg6
{[%clk 0:00:38.6]} 17. Bd3 {[%clk 0:00:26]} 17... Qd6 {[%clk 0:00:35.7]} 18. Ne4
{[%clk 0:00:23.9]} 18... Qf4 {[%clk 0:00:31.1]} 19. g3 {[%clk 0:00:22.2]} 19...
Qc7 {[%clk 0:00:23.3]} 20. Neg5 {[%clk 0:00:18]} 20... h6 {[%clk 0:00:23.3]} 21.
Ne4 {[%clk 0:00:16]} 21... f5 {[%clk 0:00:21.1]} 22. Ned2 {[%clk 0:00:14.5]}
22... Ne3 {[%clk 0:00:18.6]} 23. Qb3 {[%clk 0:00:11.8]} 23... Nxf1 {[%clk
0:00:17.5]} 24. Rxf1 {[%clk 0:00:12.1]} 24... Qf7 {[%clk 0:00:13.9]} 25. c5
{[%clk 0:00:11.6]} 25... b5 {[%clk 0:00:13]} 26. Bxb5 {[%clk 0:00:11.3]} 26...
Bd7 {[%clk 0:00:07.4]} 27. Bc4 {[%clk 0:00:11.4]} 27... Kh8 {[%clk 0:00:07.1]}
28. c6 {[%clk 0:00:10.5]} 28... Bc8 {[%clk 0:00:07.1]} 29. d6 {[%clk 0:00:10.1]}
29... Be6 {[%clk 0:00:07.5]} 30. d7 {[%clk 0:00:10.5]} 30... Re7 {[%clk
0:00:05.8]} 31. Bxe6 {[%clk 0:00:08.8]} 31... Rxe6 {[%clk 0:00:06.7]} 32. Nc4
{[%clk 0:00:07.7]} 32... Qe7 {[%clk 0:00:05.3]} 33. Na5 {[%clk 0:00:05.3]} 33...
Re4 {[%clk 0:00:04]} 34. Qd5 {[%clk 0:00:04.1]} 34... Rd8 {[%clk 0:00:03.3]} 35.
Qxf5 {[%clk 0:00:04.4]} 35... Re2 {[%clk 0:00:01.8]} 36. Kg2 {[%clk 0:00:04.3]}
36... Rf8 {[%clk 0:00:02.4]} 37. Qd3 {[%clk 0:00:04.1]} 37... Re4 {[%clk
0:00:02.4]} 38. c7 {[%clk 0:00:04.5]} 38... Rg4 {[%clk 0:00:01.7]} 39. d8=Q
{[%clk 0:00:05]} 39... Rxd8 {[%clk 0:00:01.7]} 40. cxd8=Q+ {[%clk 0:00:05.1]}
40... Qxd8 {[%clk 0:00:02.6]} 41. Qxd8+ {[%clk 0:00:05.6]} 41... Kh7 {[%clk
0:00:03.5]} 42. Qd3+ {[%clk 0:00:06.1]} 42... Kh8 {[%clk 0:00:04]} 43. Ne5
{[%clk 0:00:06.9]} 1-0

[Event "Early-Titled-Tuesday-Blitz-March-19-2024"]
[Site "Chess.com"]
[Date "2024.03.19"]
[Round "4"]
[White "Ati1517"]
[Black "MasterKroket"]
[Result "1-0"]
[WhiteElo "2247"]
[BlackElo "2489"]
[TimeControl "180+1"]
[EndTime "8:40:20 PDT"]
[Termination "Ati1517 won on time"]

1. e4 {[%clk 0:03:00.9]} 1... c5 {[%clk 0:02:54.8]} 2. Nf3 {[%clk 0:03:01.3]}
2... d6 {[%clk 0:02:54.7]} 3. d4 {[%clk 0:03:01.8]} 3... cxd4 {[%clk 0:02:55.1]}
4. Nxd4 {[%clk 0:03:02.6]} 4... Nf6 {[%clk 0:02:55.5]} 5. Nc3 {[%clk 0:03:03.1]}
5... Nc6 {[%clk 0:02:56.1]} 6. Be3 {[%clk 0:03:00.7]} 6... Bd7 {[%clk
0:02:56.1]} 7. Bc4 {[%clk 0:03:00.6]} 7... e6 {[%clk 0:02:55]} 8. O-O {[%clk
0:02:59.9]} 8... Be7 {[%clk 0:02:55]} 9. f3 {[%clk 0:03:00]} 9... O-O {[%clk
0:02:53.1]} 10. Bb3 {[%clk 0:02:58.8]} 10... Nxd4 {[%clk 0:02:47.9]} 11. Bxd4
{[%clk 0:02:58.4]} 11... Bc6 {[%clk 0:02:48.5]} 12. Qd2 {[%clk 0:02:54.9]} 12...
Qc7 {[%clk 0:02:45.4]} 13. Rad1 {[%clk 0:02:53.7]} 13... b5 {[%clk 0:02:42]} 14.
a3 {[%clk 0:02:50.8]} 14... a5 {[%clk 0:02:41.8]} 15. Rfe1 {[%clk 0:02:42.3]}
15... Rab8 {[%clk 0:02:38]} 16. Kh1 {[%clk 0:02:27.1]} 16... b4 {[%clk
0:02:35.4]} 17. axb4 {[%clk 0:02:23.8]} 17... axb4 {[%clk 0:02:36.3]} 18. Ne2
{[%clk 0:02:22.2]} 18... d5 {[%clk 0:02:31.2]} 19. Ng3 {[%clk 0:02:21.2]} 19...
dxe4 {[%clk 0:02:27.5]} 20. fxe4 {[%clk 0:02:20.7]} 20... Qb7 {[%clk 0:02:21.7]}
21. Qf4 {[%clk 0:02:04.9]} 21... Rfd8 {[%clk 0:02:16.2]} 22. Bc4 {[%clk
0:01:43.8]} 22... Bd6 {[%clk 0:02:03]} 23. e5 {[%clk 0:01:38.7]} 23... Bxg2+
{[%clk 0:02:02.4]} 24. Kg1 {[%clk 0:01:39.1]} 24... Bc7 {[%clk 0:02:02.6]} 25.
Qf2 {[%clk 0:01:36.9]} 25... Rxd4 {[%clk 0:00:41.1]} 26. Rxd4 {[%clk 0:01:32.6]}
26... Bb6 {[%clk 0:00:41.2]} 27. exf6 {[%clk 0:01:29.5]} 27... Bh3 {[%clk
0:00:31.9]} 28. c3 {[%clk 0:01:00.5]} 28... bxc3 {[%clk 0:00:31.7]} 29. bxc3
{[%clk 0:01:01.4]} 29... Rd8 {[%clk 0:00:23.8]} 30. Rxd8+ {[%clk 0:01:00.5]}
30... Bxd8 {[%clk 0:00:23.2]} 31. Ne2 {[%clk 0:00:46.5]} 31... Bxf6 {[%clk
0:00:21.4]} 32. Nd4 {[%clk 0:00:45.8]} 32... Qc7 {[%clk 0:00:16.2]} 33. Qg3
{[%clk 0:00:38]} 33... e5 {[%clk 0:00:10.8]} 34. Qxh3 {[%clk 0:00:26.7]} 34...
Qxc4 {[%clk 0:00:11]} 35. Ne2 {[%clk 0:00:24.1]} 35... g6 {[%clk 0:00:10.7]} 36.
Qf3 {[%clk 0:00:23.7]} 36... Kg7 {[%clk 0:00:09.8]} 37. Ng3 {[%clk 0:00:23.5]}
37... Qc5+ {[%clk 0:00:04.7]} 38. Kg2 {[%clk 0:00:23]} 38... Qe7 {[%clk
0:00:02.9]} 39. Rf1 {[%clk 0:00:23]} 39... Bh4 {[%clk 0:00:01.8]} 40. Ne4 {[%clk
0:00:20.8]} 40... f5 {[%clk 0:00:02.5]} 41. Ng3 {[%clk 0:00:20.3]} 41... e4
{[%clk 0:00:02.8]} 42. Qf4 {[%clk 0:00:20.5]} 42... Bg5 {[%clk 0:00:02.6]} 43.
Qf2 {[%clk 0:00:20.1]} 43... Qc7 {[%clk 0:00:02.7]} 44. Nxf5+ {[%clk 0:00:20]}
44... gxf5 {[%clk 0:00:02.7]} 45. Qxf5 {[%clk 0:00:20.9]} 45... Qe7 {[%clk
0:00:03.1]} 46. Re1 {[%clk 0:00:19.4]} 46... e3 {[%clk 0:00:03.7]} 47. h4 {[%clk
0:00:18.9]} 47... Bf6 {[%clk 0:00:02.9]} 48. Qg4+ {[%clk 0:00:18.1]} 48... Kf7
{[%clk 0:00:03]} 49. Qf3 {[%clk 0:00:18.3]} 49... Qc5 {[%clk 0:00:01.8]} 50.
Rxe3 {[%clk 0:00:18.4]} 1-0

[Event "Early-Titled-Tuesday-Blitz-March-19-2024"]
[Site "Chess.com"]
[Date "2024.03.19"]
[Round "4"]
[White "zurzan"]
[Black "martinmena"]
[Result "0-1"]
[WhiteElo "2036"]
[BlackElo "2275"]
[TimeControl "180+1"]
[EndTime "8:40:21 PDT"]
[Termination "martinmena won by resignation"]

1. c4 {[%clk 0:03:00.9]} 1... Nf6 {[%clk 0:02:54.1]} 2. g3 {[%clk 0:03:01]} 2...
e6 {[%clk 0:02:51.8]} 3. Bg2 {[%clk 0:03:01.9]} 3... d5 {[%clk 0:02:50.1]} 4.
Nf3 {[%clk 0:03:02.8]} 4... Be7 {[%clk 0:02:45.2]} 5. cxd5 {[%clk 0:02:57.8]}
5... exd5 {[%clk 0:02:44.4]} 6. O-O {[%clk 0:02:58.7]} 6... O-O {[%clk
0:02:44.8]} 7. d3 {[%clk 0:02:56.8]} 7... c5 {[%clk 0:02:37.3]} 8. Nc3 {[%clk
0:02:56]} 8... Nc6 {[%clk 0:02:37.5]} 9. e4 {[%clk 0:02:55]} 9... dxe4 {[%clk
0:02:30.8]} 10. dxe4 {[%clk 0:02:54.4]} 10... Qxd1 {[%clk 0:02:26.3]} 11. Rxd1
{[%clk 0:02:54.2]} 11... Bg4 {[%clk 0:02:26.9]} 12. h3 {[%clk 0:02:53.7]} 12...
Bxf3 {[%clk 0:02:26]} 13. Bxf3 {[%clk 0:02:53.5]} 13... Nd4 {[%clk 0:02:26.4]}
14. Bg2 {[%clk 0:02:45.8]} 14... Rad8 {[%clk 0:02:23.4]} 15. Be3 {[%clk
0:02:41]} 15... Nc2 {[%clk 0:02:22.1]} 16. Rxd8 {[%clk 0:02:37.5]} 16... Rxd8
{[%clk 0:02:23]} 17. Rd1 {[%clk 0:02:37.2]} 17... Nxe3 {[%clk 0:02:20.3]} 18.
Rxd8+ {[%clk 0:02:35.5]} 18... Bxd8 {[%clk 0:02:21.2]} 19. fxe3 {[%clk
0:02:35.9]} 19... Nd7 {[%clk 0:02:17.5]} 20. Nd5 {[%clk 0:02:31.2]} 20... Ne5
{[%clk 0:02:13.4]} 21. Kf2 {[%clk 0:02:19.5]} 21... Nd3+ {[%clk 0:02:11.1]} 22.
Ke2 {[%clk 0:02:19.4]} 22... Nxb2 {[%clk 0:02:11.4]} 23. Kd2 {[%clk 0:02:15.6]}
23... Nc4+ {[%clk 0:02:11.9]} 24. Kc3 {[%clk 0:02:15]} 24... Ne5 {[%clk
0:02:10.3]} 25. a4 {[%clk 0:02:12.4]} 25... Ba5+ {[%clk 0:02:07.2]} 26. Kc2
{[%clk 0:02:11.7]} 26... Kf8 {[%clk 0:02:00.8]} 27. g4 {[%clk 0:02:08.2]} 27...
f6 {[%clk 0:01:59.6]} 28. Bf1 {[%clk 0:02:03.5]} 28... Kf7 {[%clk 0:01:55.2]}
29. Bb5 {[%clk 0:02:02.6]} 29... a6 {[%clk 0:01:52.9]} 30. Be2 {[%clk
0:02:01.6]} 30... g5 {[%clk 0:01:49.7]} 31. Kb3 {[%clk 0:02:00.8]} 31... Ke6
{[%clk 0:01:43.1]} 32. Kc2 {[%clk 0:02:00.9]} 32... Nd7 {[%clk 0:01:33.4]} 33.
Kb3 {[%clk 0:01:58.2]} 33... Ke5 {[%clk 0:01:30.6]} 34. Bd3 {[%clk 0:01:47.2]}
34... Kd6 {[%clk 0:00:57.3]} 35. Kc2 {[%clk 0:01:44.8]} 35... Bd8 {[%clk
0:00:45.6]} 36. Kb3 {[%clk 0:01:43]} 36... Ne5 {[%clk 0:00:45.3]} 37. Be2 {[%clk
0:01:41.2]} 37... Kc6 {[%clk 0:00:42.9]} 38. Nc3 {[%clk 0:01:27.1]} 38... h6
{[%clk 0:00:35.1]} 39. Nd5 {[%clk 0:01:26.9]} 39... b5 {[%clk 0:00:32.7]} 40.
Nc3 {[%clk 0:01:26]} 40... c4+ {[%clk 0:00:27.7]} 41. Kc2 {[%clk 0:01:00.6]}
41... b4 {[%clk 0:00:26.2]} 42. Nd5 {[%clk 0:00:58.4]} 42... Kc5 {[%clk
0:00:22.9]} 43. Kb1 {[%clk 0:00:25.5]} 43... a5 {[%clk 0:00:19.6]} 44. Kb2
{[%clk 0:00:25.1]} 44... Kc6 {[%clk 0:00:14.1]} 45. Kc2 {[%clk 0:00:24.6]} 45...
Nd7 {[%clk 0:00:13.4]} 46. Bxc4 {[%clk 0:00:22.3]} 46... Nc5 {[%clk 0:00:13.2]}
47. Bb5+ {[%clk 0:00:22.2]} 47... Kd6 {[%clk 0:00:11.9]} 48. Kd2 {[%clk
0:00:17.1]} 48... Nxe4+ {[%clk 0:00:11.6]} 49. Kd3 {[%clk 0:00:17.3]} 49... Kxd5
{[%clk 0:00:11.6]} 50. Bc6+ {[%clk 0:00:16.6]} 50... Kxc6 {[%clk 0:00:11.4]} 51.
Kxe4 {[%clk 0:00:17.5]} 51... b3 {[%clk 0:00:11.5]} 0-1